Cogmind - Beta 13 @@@ ROGUE MODE // 2024.05.12 @ 00:29:02 Player: Toa of Guts Result: Destroyed by Piercing Trap Performance ------------- Evolutions (0) 0 Regions Visited (2) 400 Robots Destroyed (13) 65 Value Destroyed (398) 398 Prototype IDs (1) 20 Alien Tech Used (0) 0 Bonus (0) 0 TOTAL SCORE: 883 Bonus ------- None Cogmind --------- Core Integrity 0/250 Matter 285/300 Energy 198/200 System Corruption 0% Temperature Cool (0) Movement Rolling (105) Location -10/Subcaves Parts ------- > --- POWER (1) -------- Subdweller Power Source > --- PROPULSION (2) --- Compact Wheel Subdweller Monowheel > --- UTILITY (2) ------ Disposable Heat Sink Large Storage Unit > --- WEAPON (2) ------- Light EM Pulse Cannon Light EM Pulse Cannon > --- INVENTORY (15) --- Light Ion Engine High-capacity Matter Pod (200) Structural Scanner Riot Gun Improved Medium Laser Improved Medium Laser Subdweller Laser Light EM Pulse Cannon Subdweller Beam Cannon Battle Rifle Grenade Launcher Piercing Trap Scrap Shield Fragment (49) Scrap Shield Fragment (46) Scrap Shield Fragment (45) Peak State ------------ > --- POWER ------------ Subdweller Power Source > --- PROPULSION ------- Compact Wheel Subdweller Monowheel > --- UTILITY ---------- Disposable Heat Sink Large Storage Unit > --- WEAPON ----------- Improved Medium Laser Improved Medium Laser > --- INVENTORY -------- Light Ion Engine High-capacity Matter Pod Structural Scanner Light EM Pulse Cannon Light EM Pulse Cannon Light EM Pulse Cannon Light EM Pulse Cannon Grenade Launcher Piercing Trap Scrap Shield Fragment Scrap Shield Fragment Scrap Shield Fragment [Rating: 15] Favorites ----------- Power Light Ion Engine Engine Light Ion Engine Propulsion Light Treads Treads Light Treads Leg Aluminum Leg Wheel Compact Wheel Utility Large Storage Unit Device Disposable Heat Sink Storage Large Storage Unit Protection Light Armor Plating Weapon Light EM Pulse Cannon Energy Gun Medium Laser Energy Cannon Light EM Pulse Cannon Ballistic Gun Assault Rifle Launcher Grenade Launcher Build | -11 -10 -10 ------- Run | Yrd Mat Sub Slots Evolved . | . . . Power . | . . . Propulsion . | . . . Utility . | . . . Weapon . | . . . Parts Attached 30 | 6 6 18 Power 3 | 1 . 2 Engine 3 | 1 . 2 Core . | . . . Reactor . | . . . Propulsion 9 | 2 1 6 Treads 3 | 2 1 . Leg 2 | . . 2 Wheel 4 | . . 4 Hover . | . . . Flight . | . . . Utility 4 | 1 2 1 Device 1 | . . 1 Storage 2 | 1 1 . Processor . | . . . Hackware . | . . . Protection 1 | . 1 . Artifact . | . . . Weapon 14 | 2 3 9 Energy Gun 5 | 1 1 3 Energy Cannon 4 | . 1 3 Ballistic Gun 3 | 1 . 2 Ballistic Cannon . | . . . Launcher 2 | . 1 1 Special Weapon . | . . . Impact Weapon . | . . . Slashing Weapon . | . . . Piercing Weapon . | . . . Special Melee Weapon . | . . . Unidentified Prototypes 1 | . 1 . Parts Lost 10 | . . 10 Power 1 | . . 1 Propulsion 5 | . . 5 Utility 1 | . . 1 Weapon 3 | . . 3 Highest Loss Streak 4 | . . 4 To Critical Strikes . | . . . Average Slot Usage (%) 93 | . 98 89 Engine 12 | . 14 11 Treads 13 | . 28 3 Leg 2 | . . 4 Wheel 10 | . . 17 Device 3 | . . 6 Storage 14 | . 14 14 Protection 7 | . 12 3 Energy Gun 12 | . 21 6 Energy Cannon 8 | . . 14 Ballistic Gun 5 | . 6 5 Naked Turns . | . . . Heaviest Build 34 | 12 33 34 Greatest Support 40 | 40 40 40 Greatest Overweight (x) 7 | . . 7 Average Overweight (x) . | . . . Largest Inventory Capacity 15 | 8 15 15 Average Capacity 14 | 7 14 15 Most Carried 15 | 6 15 15 Average Carried 12 | 4 12 13 Final Capacity 15 | 8 15 15 Final Carried 15 | 6 15 15 Class Distribution -------------------- 100% | Mutant Dominant Class ---------------- Mutant | -10/Materials Mutant | -10/Subcaves Resources | -11 -10 -10 ----------- Run | Yrd Mat Sub Matter Collected 778 | 243 114 421 Remotely . | . . . Salvage Created 508 | . 132 376 Parts 28 | . 11 17 Haulers Intercepted . | . . . Recyclers Shooed . | . . . Parts Field Recycled . | . . . Retrieved Matter . | . . . Parts Self-Destructed 2 | . . 2 Prevented . | . . . Kills | -11 -10 -10 ------- Run | Yrd Mat Sub Combat Hostiles Destroyed 11 | . 2 9 Guns 6 | . 2 4 Cannons 2 | . . 2 AOE 2 | . . 2 Classes Destroyed 5 | . 3 2 Worker 1 | . 1 . Watcher 1 | . 1 . Swarmer 2 | . . 2 Grunt 2 | . 2 . Subdweller 7 | . . 7 Best Kill Streak 2 | . 2 2 Combat Bots Only 2 | . 1 2 Max Kills in Single Turn 2 | . 1 2 Gunslinging . | . . . Exploded 2 | . . 2 Melee . | . . . Uniques/NPCs Destroyed . | . . . Combat | -11 -10 -10 -------- Run | Yrd Mat Sub Hostile Shots Fired 88 | . 9 79 Missed 18 | . 4 14 Damage Taken 1436 | . 60 1376 Core 256 | . 11 245 Absorbed by Shields . | . . . Core Remaining (%) 100 | 100 . . Volleys Fired 72 | . 11 61 Largest 2 | . 2 2 Hottest 112 | . 70 112 Shots Fired 137 | . 22 115 Gun 114 | . 22 92 Cannon 22 | . . 22 Launcher 1 | . . 1 Special . | . . . Kinetic 67 | . 11 56 Thermal 47 | . 11 36 Explosive 1 | . . 1 Electromagnetic 22 | . . 22 Robot Hit Streak 23 | . 8 23 Robot Miss Streak 2 | . 1 2 Penetration Max . | . . . Secondary Targets . | . . . Shots Hit Robots 111 | . 18 93 Core Hits 24 | . 7 17 Critical Kills . | . . . Critical Parts Destroyed . | . . . Critical Strikes 5 | . 2 3 Burn 4 | . 2 2 Corrupt 1 | . . 1 Melee Attacks . | . . . Impact . | . . . Slashing . | . . . Piercing . | . . . Sneak Attacks . | . . . Combat Hostiles . | . . . Follow-up Attacks . | . . . Damage Inflicted 1245 | . 223 1022 Guns 877 | . 223 654 Cannons 284 | . . 284 Explosions 84 | . . 84 Melee . | . . . Ramming . | . . . Kinetic 457 | . 96 361 Thermal 420 | . 127 293 Explosive 84 | . . 84 Electromagnetic 284 | . . 284 Impact . | . . . Slashing . | . . . Piercing . | . . . Highest Corruption . | . . . Average Corruption . | . . . Corruption Purged . | . . . Corruption Blocked . | . . . Overload Shots . | . . . Overflow Damage . | . . . Projectiles . | . . . Explosions . | . . . Melee . | . . . Knockbacks . | . . . Impact . | . . . Kinetic . | . . . Secondary . | . . . Self-Inflicted Damage . | . . . Shots . | . . . Rammed . | . . . Targets Rammed . | . . . Kicked . | . . . Crushed . | . . . Highest Temperature 108 | . 108 1 Average Temperature 45 | . 47 1 Received Heat Transfer 432 | . 36 396 Siege Activations . | . . . Robots Corrupted 1 | . . 1 Combat Hostiles 1 | . . 1 Parts Fried 1 | . . 1 Impact Corruptions . | . . . Robots Melted . | . . . Combat Hostiles . | . . . Parts Melted 4 | . 1 3 Heat Transferred 1369 | . 518 851 Parts Sabotaged . | . . . Parts Stolen . | . . . Parts Stripped . | . . . Power Chain Reactions . | . . . Alert | -11 -10 -10 ------- Run | Yrd Mat Sub Peak Influence 92 | . 92 . Initial . | . . . Average 27 | . 32 . Maximum Alert Level . | . . . Low Security (%) 100 | 100 100 . Level 1 . | . . . Level 2 . | . . . Level 3 . | . . . Level 4 . | . . . Level 5 . | . . . High Security . | . . . Max Security . | . . . Squads Dispatched . | . . . Investigation . | . . . Extermination . | . . . Reinforcement . | . . . Assault . | . . . Garrison . | . . . Intercept . | . . . Searches Triggered . | . . . Construction Impeded . | . . . Haulers Reinforced . | . . . Active Scanning Responses . | . . . Cargo Convoy Interrupts . | . . . Stealth | -11 -10 -10 --------- Run | Yrd Mat Sub Distress Signals 2 | . 2 . Communications Jammed . | . . . Distress Signals . | . . . Times Spotted 14 | . 5 9 Peak Tracking Total 3 | . 3 3 Tactical Retreats 2 | . 1 1 Traps | -11 -10 -10 ------- Run | Yrd Mat Sub Traps Triggered 2 | . 1 1 Indirectly . | . . . Trap Hack Attempts . | . . . Triggered . | . . . Disarmed . | . . . Reprogrammed . | . . . Reused . | . . . Traps Extracted . | . . . Installed . | . . . Triggered . | . . . Most Traps Carried 1 | . . 1 Machines | -11 -10 -10 ---------- Run | Yrd Mat Sub Machines Disabled . | . . . Max in Single Turn . | . . . Machines Repaired . | . . . Machines Dismantled . | . . . Machines Sabotaged . | . . . Overloaded Fab Kills . | . . . Hacking | -11 -10 -10 --------- Run | Yrd Mat Sub Machines Accessed . | . . . Terminals . | . . . Fabricators . | . . . Repair Stations . | . . . Recycling Units . | . . . Scanalyzers . | . . . Garrison Access . | . . . Total Hacks . | . . . Successful . | . . . Failed . | . . . Catastrophic . | . . . Database Lockouts . | . . . Manual . | . . . Terminals . | . . . Fabricators . | . . . Repair Stations . | . . . Recycling Units . | . . . Scanalyzers . | . . . Garrison Access . | . . . Terminal Hacks . | . . . Fabricator Hacks . | . . . Repair Station Hacks . | . . . Recycling Unit Hacks . | . . . Scanalyzer . | . . . Garrison Access Hacks . | . . . Unauthorized Hacks . | . . . Terminals . | . . . Fabricators . | . . . Repair Stations . | . . . Recycling Units . | . . . Scanalyzers . | . . . Garrison Access . | . . . Data Cores Recovered . | . . . Used . | . . . Hacking Detections . | . . . Full Trace Events . | . . . Feedback Events . | . . . Feedback Blocked . | . . . Robot Schematics Acquired . | . . . Robots Built . | . . . Authchips . | . . . Time . | . . . Total Robot Build Rating . | . . . Part Schematics Acquired . | . . . Parts Built . | . . . Authchips . | . . . Time . | . . . Total Part Build Rating . | . . . Parts Repaired . | . . . Time . | . . . Parts Recycled . | . . . Recycled Matter . | . . . Retrieved Matter . | . . . Retrieved Components . | . . . Parts Scanalyzed . | . . . Part Schematics Acquired . | . . . Parts Damaged . | . . . Bothacking | -11 -10 -10 ------------ Run | Yrd Mat Sub Used RIF Installer . | . . . Robots Hacked . | . . . Non-combat . | . . . Combat . | . . . Robot Hacks Applied . | . . . Relay Couplers Released . | . . . Fabnet Peak Effective % . | . . . Robots Rewired . | . . . Allies Hacked . | . . . Hacks Repelled . | . . . Allies | -11 -10 -10 -------- Run | Yrd Mat Sub Total Allies . | . . . Largest Group . | . . . Highest-Rated Group . | . . . Highest-Rated Ally . | . . . Total Orders . | . . . Ally Attacks . | . . . Total Damage . | . . . Kills . | . . . Allies Corrupted . | . . . Allies Melted . | . . . Intel | -11 -10 -10 ------- Run | Yrd Mat Sub Robot Analysis Total . | . . . Derelict Logs Recovered . | . . . Drone Launches . | . . . Drone Recoveries . | . . . Exploration | -11 -10 -10 ------------- Run | Yrd Mat Sub Turns Passed 1663 | 110 644 909 Spaces Moved 794 | 64 169 561 Core 7 | 6 . 1 Treads 259 | 58 169 32 Legs 46 | . . 46 Wheels 482 | . . 482 Hover . | . . . Flight . | . . . Fastest Speed 50 | 50 160 105 Average Speed 129 | 149 160 117 Slowest Speed 400 | 160 160 400 Overloaded Moves . | . . . Propulsion Burnouts . | . . . Robots Hopped . | . . . Cave-ins Triggered . | . . . Exploration Rate (%) 20 | 4 27 31 Regions Visited 2 Branch Regions 1 Pre-discovered Areas . | . . . Known Exits Taken . | . . . Unknown Exits Taken 2 | 1 1 . Scrap Searched 5 | . . 5 Spaces Dug 10 | . . 10 Terrain Destroyed 10 | . . 10 Melee . | . . . Projectile . | . . . AOE 10 | . . 10 Terrain Rammed . | . . . Walls Destroyed . | . . . Machines Disabled . | . . . Actions | -11 -10 -10 --------- Run | Yrd Mat Sub Total 1292 | 75 519 698 Wait 370 | . 324 46 Move 792 | 63 168 561 Hop . | . . . Pick Up 23 | 6 9 8 Fast Attach 12 | 6 2 4 Attach 7 | . . 7 Detach 1 | . . 1 Swap 11 | . 4 7 Drop 4 | . 1 3 Fire 72 | . 11 61 Melee . | . . . Ram . | . . . Kick . | . . . Crush . | . . . Escape Stasis . | . . . Rewire . | . . . Trap . | . . . Miscellaneous . | . . . Route ------- -11/Scrapyard -10/Materials (discovered 2 exits: [*Min] / [*Sub]) -10/Subcaves History --------- Turn | Location | Event 15 | -11/Scrapyard | Discovered new exit (range 14) 111 | -11/Scrapyard | Entered Materials 314 | -10/Materials | Build established: Mutant 434 | -10/Materials | Discovered new exit (range 13) 733 | -10/Materials | Discovered new exit (range 5) 755 | -10/Materials | Entered Subcaves 761 | -10/Subcaves | A swath of the cavern ceiling suddenly collapsed 1016 | -10/Subcaves | Lost 4 parts (1p1n1u1w) 1032 | -10/Subcaves | Core integrity fell below 50% 1052 | -10/Subcaves | Core integrity fell below 20% 1104 | -10/Subcaves | Lost 4 parts (2n2w) 1664 | -10/Subcaves | Destroyed by Piercing Trap Last Messages --------------- 01251_ Searching scrap... 01251_ Found Battle Rifle. 01251_ Found Shrapnel Trap. 01251_ Found 23 Matter. 01252_ Acquired 23 matter. 01255_ Acquired Sub. Beam Cannon. 01257_ Acquired Battle Rifle. 01259_ Acquired Riot Gun. 01314_ Acquired 10 matter. 01383_ R4-I1V(R) destroyed. 01383_ 0A-ZVD(R) shuts down. 01389_ Sub. Optics fried. 01389_ 0A-ZVD(R) destroyed. 01393_ Acquired 24 matter. 01397_ Dropped Sub. Power Source. 01490_ Acquired 10 matter. 01506_ S-10 Pest destroyed. 01530_ Acquired 15 matter. 01664_ Triggered Piercing Trap. 01664_ Spikes shoot up from the floor. Map ----- +----------------------------------------------------+ | ?????????????????????????????????????????????????? | | ?????????????????????????????????????????????????? | | ?????????????????????????????????????????????????? | | ?????????????????????????????????????????????????? | | ?????????????????????????????????????????????????? | | ?????????????????????????????????????????????????? | | ?????????????????????????????????????????????????? | | ?????????????????????????????????????????????????? | | ?????????????????????????????????????????????????? | | ?????????????????????????????????????????????????? | | ?????????????????????????????????????????????????? | | ?????????????????????????????????????????????????? | | ?????????????????????????????????????????????????? | | ?????????????????????????????????????????????????? | | ?????????????????????????????????????????????????? | | ?????????????????????????????????????????????????? | | ?????????????????????????????????????????????????? | | ???????????????????????##????????????????????????? | | ??????????????????????## ##??????????????????????? | | ?????????????????????? #??????????????????????? | | ??????????????????????? ######?????????????????? | | ??????????????????????? # # ##????????????????? | | ???????????????????????? "?????????????????? | | ???????????????????????? ???????????????????? | | ????????????????????????# ?????????????????????? | | ?????????????????????####@#??????????????????????? | | ????????????????????## ##??????????????????????? | | ????????????????????# ####????????????????????? | | ????????????????????## #????????????????????? | | ?????????????####????## ##???????????????????? | | ?????????????# ##????## ##??????????????????? | | ?????####????# #?????## #??????????????????? | | ??#### ##???# #?###### ##?????????????????? | | ?## #???## ### ###???????????????? | | ## #?????## ?????????? | | #??????## ## ????????? | | #?????### #####? ????????? | | ##????## #????? ## ?????????? | | ## #????## #????? ##?? ?????????? | | #### #????# ## ##????? #???? ?????????? | | #??## #????# ######????? #????? ??????????? | | ???# #????# ### ##???? #?????????????????? | | ???## #????# ##???? #?????????????????? | | ????# ##???# ###??####?# ????????????? | | ##?## #??## ##?????# #????????????? | | ### #?## ### #????? ##???????????? | | ##?# ###?#### #????# ????????????? | | #??# #?###### ##???? #????????????? | | #??# ### ##????? ?????????????? | | #??## ##?????? ??????????????? | +----------------------------------------------------+ Best States ------------- Heat Dissipation 25 Coolant Potential 50 Energy Generation 15 Energy Capacity 200 Matter Stores 300 Matter Capacity 300 Sight Range 16 Terrain Scan Density 10 Armor Coverage 150 Evasion (%) 40 Recoil Reduction 2 Item Schematics ----------------- None Robot Schematics ------------------ None Fabricated ------------ Nothing Alien Tech Used ----------------- None Achievements -------------- None Challenges ------------ None Game ------ Seed AluminumMobileMultitool Manual? 0 Play Time 00:15:07 Cumulative 136.1 hours Start 2024.05.12 @ 00:17:51 End 2024.05.12 @ 00:29:02 Sessions 1 Manual Loads 0 Difficulty Rogue Special Mode None Game No. 86 Rogue 86 Adventurer 0 Explorer 0 Win Type - Total 4 Types 4/0/0/0/0/0/0/0/0 Lore% 44 Gallery% 55 Achievement% 39 Wizard Run 0 Options --------- Layout 0 ASCII 0 Keyboard 0 Movement Numpad Keybinds 0 Fullscreen 1 Font 24/X11 Map View 76x50 Zoom Use 0% Tactical HUD 1 Map Filters NONE Filters NONE Steam 1 RUN: 0034cf10-bbda-4c63-8301-bf69cd4d04b1